bitfinex/quotes_ETHUSD_20241204
["timestamp","ask_amount","ask_price","bid_price","bid_amount"]
[1733305721783,1.07071167,3730.5,3730.4,2.68067]
[1733305721978,1.47200364,3730.5,3730.4,2.68067]
[1733305723124,1.47193232,3730.5,3730.4,2.68067]
[1733305723683,1.0706541,3730.5,3730.4,2.68067]
[1733305724423,1.4718825,3730.5,3730.4,2.68067]
[1733305724582,1.0706541,3730.5,3730.4,2.68067]
[1733305724785,1.47188721,3730.5,3730.4,2.68067]
[1733305725696,1.0706541,3730.5,3730.4,2.68067]
[1733305725908,1.47186576,3730.5,3730.4,2.68067]
[1733305726423,1.22099588,3730.5,3730.4,2.68067]
[1733305726724,1.47179189,3730.5,3730.4,2.68067]
[1733305728132,0.90286564,3730.5,3730.4,3.97122]
[1733305728283,0.65206963,3730.5,3730.4,3.97122]
[1733305728484,0.25079601,3730.5,3730.4,3.97122]
[1733305729333,0.65218122,3730.5,3730.4,3.97122]
[1733305729885,0.40139038,3731.0,3730.4,3.97122]
[1733305730194,0.65226316,3730.9,3730.7,2.68044]
[1733305730394,0.90313277,3730.8,3730.7,2.68044]
[1733305730596,1.07076592,3730.8,3730.7,2.68044]
[1733305731097,1.47217013,3730.8,3730.7,2.68044]
[1733305732307,1.47217013,3730.8,3730.5,2.68054]
[1733305732503,1.07076592,3730.7,3730.5,2.68057]
[1733305732701,1.07076592,3730.6,3730.1,0.7544]
[1733305732909,0.41811658,3730.8,3730.6,2.68049]
[1733305733110,1.472433,3730.7,3730.6,2.68049]
[1733305733464,1.54235045,3731.3,3730.8,0.60945042]
[1733305733646,0.92929463,3731.2,3730.8,0.60945042]
[1733305733994,1.54235045,3731.3,3730.8,0.60945042]
[1733305734227,1.25217679,3731.2,3730.8,0.60945042]
[1733305734435,0.32288861,3731.2,3730.8,0.60945042]
[1733305735835,0.32288861,3731.2,3730.9,2.68027]
[1733305736133,0.32288861,3731.2,3731.0,2.68023]
[1733305736333,1.54235045,3731.4,3731.0,2.68023]
[1733305736643,1.54235045,3731.4,3730.8,0.60945042]
[1733305736644,0.92925693,3731.3,3730.8,3.28982042]
[1733305736844,1.54235045,3731.4,3730.8,0.60945042]
[1733305737135,1.34725925,3731.3,3730.8,0.60945042]
[1733305737333,0.9292659,3731.2,3730.8,0.60945042]
[1733305737646,1.48447296,3731.2,3730.8,0.60945042]
[1733305737793,0.55520706,3731.2,3730.8,0.60945042]
[1733305737997,0.97320041,3731.2,3730.8,0.60945042]
[1733305738525,0.4186438,3730.9,3730.8,0.60945042]
[1733305740237,0.41799335,3731.1,3730.8,0.60945042]
[1733305740437,0.20975575,3731.0,3730.8,0.60945042]
[1733305740734,0.20975575,3731.0,3730.8,0.00591894]
[1733305741140,0.41863968,3730.9,3730.8,0.00591894]
[1733305741945,0.41863968,3730.9,3730.8,2.68630894]
[1733305742106,0.41863968,3731.1,3730.8,3.45850894]
[1733305742306,0.41863968,3731.2,3731.0,2.68024]
[1733305742536,0.41863968,3731.2,3731.1,2.68017]
[1733305742703,1.81245721,3731.6,3730.8,0.77811894]
[1733305742905,4.26140738,3732.0,3730.8,0.77811894]
[1733305742906,0.41864454,3731.5,3730.8,0.77811894]
[1733305743144,0.41864454,3731.7,3731.4,2.67995]
[1733305743341,0.47775196,3731.7,3730.8,0.77811894]
[1733305743586,0.82036401,3731.6,3731.3,2.67998]
[1733305743786,0.40171947,3731.5,3731.3,2.67998]
[1733305743999,0.40171947,3731.4,3731.3,2.67998]
[1733305744442,0.40171947,3731.4,3731.3,3.46148]
[1733305744652,1.54300164,3732.1,3731.3,4.075648]
[1733305744859,2.93688321,3732.2,3732.0,2.67952]
[1733305745064,1.33079795,3732.1,3732.0,2.67952]
[1733305745481,1.83231824,3732.1,3731.8,2.67964]
[1733305745653,0.90333806,3732.0,3731.9,2.67957]
[1733305746445,0.90333806,3732.0,3731.0,0.8233]
[1733305746655,0.90333806,3731.9,3731.5,2.67983]
[1733305746882,0.90333806,3731.8,3731.5,2.67983]
[1733305747192,0.90333806,3731.7,3731.0,3.5035]
[1733305747422,0.90333806,3731.6,3731.0,0.8233]
[1733305747636,2.24871421,3732.4,3730.8,0.00591894]
[1733305747637,0.9029113,3731.5,3730.8,0.00591894]
[1733305747927,0.90293325,3731.4,3731.0,2.68017]
[1733305748091,1.1243571,3731.8,3731.1,2.68017]
[1733305748092,0.90293325,3731.3,3731.1,2.68017]
[1733305748291,1.39332395,3731.8,3730.9,2.68031]
[1733305748532,1.39332395,3731.8,3730.8,0.00591894]
[1733305748533,0.90269914,3731.7,3731.2,2.6801]
[1733305748823,0.90269914,3731.6,3731.3,2.68001]
[1733305748979,0.90269914,3731.5,3731.0,2.68018]
[1733305749184,0.90269914,3731.4,3730.8,0.00591894]
[1733305749495,0.50149952,3731.3,3731.1,2.68017]
[1733305749827,1.58664323,3731.8,3730.8,0.00591894]
[1733305749828,0.50149848,3731.2,3730.8,0.00591894]
[1733305750182,0.25074976,3731.1,3731.0,2.68017]
[1733305750534,0.50149848,3731.1,3731.0,2.68017]
[1733305751930,2.51808285,3731.7,3731.0,2.68017]
[1733305752226,2.29865838,3731.6,3731.0,2.68017]
[1733305752522,0.90280434,3731.5,3731.0,2.68017]
[1733305752684,0.90280434,3731.4,3731.0,2.68017]
[1733305752881,0.90280434,3731.4,3730.8,0.00591894]
[1733305752882,0.90280434,3731.3,3730.8,2.68628894]
[1733305753088,0.90282526,3731.2,3730.8,2.68628894]
[1733305753398,0.90285119,3731.1,3730.8,0.00591894]
[1733305753582,0.50155796,3731.0,3730.8,0.00591894]
[1733305753780,1.1243571,3731.5,3730.8,0.00591894]
[1733305753781,0.50155796,3730.9,3730.8,0.00591894]
[1733305754181,0.50155796,3730.9,3730.8,2.68630894]
[1733305756049,0.50163566,3730.9,3730.8,2.68630894]
[1733305756702,0.50166686,3730.9,3730.8,2.68630894]
[1733305758104,0.50166686,3730.9,3730.8,0.00591894]
[1733305758349,0.90313905,3730.9,3730.8,0.00591894]
[1733305758661,0.50166686,3730.9,3730.8,0.00591894]
[1733305758800,0.90313705,3730.9,3730.8,0.00591894]
[1733305760151,1.1059183,3730.9,3730.8,0.00591894]
[1733305760317,1.1060598,3730.9,3730.8,0.00591894]
[1733305761033,1.27371111,3730.9,3730.8,0.00591894]
[1733305761268,1.07096169,3730.9,3730.8,0.00591894]
[1733305761977,1.07096169,3730.9,3730.8,2.68630894]
[1733305762327,1.07095263,3730.9,3730.8,2.67805595]
[1733305762462,0.90331038,3730.9,3730.8,2.67805595]
[1733305762973,1.07094943,3730.9,3730.6,2.68052]
[1733305763181,0.90331038,3730.8,3730.6,2.68052]
[1733305763340,0.90331038,3730.7,3730.6,2.68053]
[1733305763540,0.9032625,3730.7,3730.6,2.68053]
[1733305770341,0.2508726,3730.7,3730.6,2.68053]
[1733305770581,0.90304617,3730.7,3730.6,2.68053]
[1733305772482,0.50170859,3730.7,3730.6,2.68053]
[1733305772647,0.90304181,3730.7,3730.6,2.68053]
[1733305773586,0.90304181,3730.7,3730.2,0.8328]
[1733305773741,0.16763738,3730.8,3730.6,2.68053]
[1733305773949,0.90305008,3730.7,3730.6,2.68053]
[1733305776058,0.90305008,3730.7,3730.4,2.68065]
[1733305776382,0.90305008,3730.6,3730.4,2.68065]
[1733305776586,1.54241708,3731.1,3730.4,2.68065]
[1733305776587,0.90305008,3730.5,3730.4,2.68065]
[1733305777379,0.90364244,3730.5,3730.4,2.68065]
[1733305779675,0.90370551,3730.5,3730.4,2.68065]
[1733305780196,0.90370271,3730.5,3730.4,2.68065]
[1733305780751,0.90398794,3730.5,3730.4,2.68065]
[1733305782305,1.0716413,3730.5,3730.4,2.68065]
[1733305783489,0.90398794,3730.5,3730.4,2.68065]
[1733305783702,1.07163797,3730.5,3730.4,2.68065]
[1733305784114,1.07163797,3730.5,3730.4,2.89940091]
[1733305784288,1.07198043,3730.5,3730.4,0.8223]
[1733305784488,1.07197835,3730.5,3730.4,3.50297]
[1733305784709,0.90433069,3730.5,3730.4,3.50297]
[1733305784932,1.0719819,3730.5,3730.4,3.50297]
[1733305785825,1.07198292,3730.5,3730.4,3.50297]
[1733305786684,1.07198292,3730.5,3730.4,2.68067]
[1733305787688,1.0721555,3730.5,3730.4,2.68067]
[1733305790116,1.07215492,3730.5,3730.4,2.68067]
[1733305791090,1.07210082,3730.5,3730.4,2.68067]
[1733305791293,1.07210082,3730.5,3730.1,0.8042]
[1733305791535,1.07210281,3730.4,3730.1,0.8042]
[1733305791736,0.25123622,3730.4,3730.3,2.68072]
[1733305791895,1.07209821,3730.4,3730.3,2.68072]
[1733305792837,1.07209821,3730.4,3730.0,5.54635281]
[1733305793041,1.07209821,3730.3,3730.2,2.68076]
[1733305793338,1.22118073,3730.3,3730.0,5.54635281]
[1733305793544,1.07209821,3730.2,3730.0,5.54635281]
[1733305793704,0.9044442,3730.1,3730.0,5.54635281]
[1733305794529,0.9044442,3730.1,3730.0,5.0]
[1733305794714,1.07211548,3730.1,3730.0,5.0]
[1733305794916,2.41802713,3730.1,3730.0,5.0]
[1733305795122,3.54238423,3730.1,3730.0,5.0]
[1733305795306,3.79326459,3730.1,3730.0,4.16150235]
[1733305795728,3.37479964,3730.1,3730.0,4.16150235]
[1733305795938,3.64521995,3730.1,3730.0,4.16150235]
[1733305796366,3.79275572,3730.1,3730.0,4.16150235]
[1733305796653,4.76821649,3730.1,3730.0,4.16150235]
[1733305796944,3.79224167,3730.1,3730.0,4.16150235]
[1733305797304,3.37399202,3730.1,3730.0,4.16150235]
[1733305797507,2.2498418,3730.1,3730.0,4.16150235]
[1733305797931,3.37399202,3730.1,3730.0,4.16150235]
[1733305798307,2.2498418,3730.1,3730.0,4.16150235]
[1733305798757,2.2494631,3730.1,3730.0,4.16150235]
[1733305798916,2.24950355,3730.1,3730.0,4.16150235]
[1733305799107,2.24950355,3730.1,3730.0,3.55778462]
[1733305800734,0.66714912,3730.1,3730.0,3.55778462]
[1733305801055,2.24800239,3730.1,3730.0,3.55778462]
[1733305801260,2.24801355,3730.1,3730.0,3.55778462]
[1733305801553,1.31904172,3730.1,3730.0,3.55778462]
[1733305801923,1.48673711,3730.1,3730.0,3.55778462]
[1733305802522,4.5075161,3730.1,3730.0,3.55778462]
[1733305802853,3.3833194,3730.1,3730.0,3.55778462]
[1733305803208,8.58040921,3730.1,3730.0,3.55778462]
[1733305803452,8.73062807,3730.1,3730.0,3.11905112]
[1733305803611,10.43633838,3730.1,3730.0,3.11905112]
[1733305803839,12.68505259,3730.1,3730.0,3.11905112]
[1733305804031,12.68505259,3730.1,3730.0,0.37079397]
[1733305804032,13.02042376,3730.1,3730.0,0.37079397]
[1733305804368,0.55,3729.4,3728.0,0.8261]
[1733305804569,1.68850085,3728.8,3727.7,3.47389]
[1733305804770,1.68850085,3728.6,3727.7,0.7913]
[1733305805074,1.47164411,3728.5,3727.7,0.7913]
[1733305805282,1.30394872,3728.4,3727.7,0.7913]
[1733305805493,0.90291317,3728.3,3727.7,0.7913]
[1733305805788,0.90291317,3728.2,3727.1,0.8297]
[1733305806076,0.40103555,3728.4,3727.1,0.8297]
[1733305806077,1.30394872,3728.1,3727.1,0.8297]
[1733305806279,0.90291317,3728.0,3727.4,2.68281]
[1733305806451,0.50188172,3727.9,3727.4,2.68281]
[1733305806642,0.2512345,3727.8,3727.2,2.68296]
[1733305806842,0.65015336,3728.1,3727.2,2.68296]
[1733305807073,0.50012091,3728.0,3727.1,0.8297]
[1733305807253,0.50012091,3728.0,3725.5,1.0178]
[1733305807254,0.55,3727.8,3726.6,0.7955]
[1733305807670,0.55,3727.6,3726.8,2.68325]
[1733305807891,0.79985641,3727.6,3726.8,0.347875]
[1733305808101,0.52331853,3728.4,3726.8,0.347875]
[1733305808102,0.49991088,3727.8,3727.7,2.68261]
[1733305808404,0.40009438,3728.6,3728.1,2.68233]
[1733305808604,0.40009438,3728.9,3728.2,2.68225]
[1733305808760,0.40009438,3728.9,3728.0,0.7633]
[1733305808761,0.2496536,3728.8,3728.0,0.7633]
[1733305808968,0.2496536,3728.7,3727.8,2.68254]
[1733305809160,0.64974798,3728.6,3727.9,2.68246]
[1733305809502,0.2496536,3728.5,3728.0,2.68239]
[1733305809799,0.2496536,3728.4,3727.5,2.6827]
[1733305810098,0.64974798,3728.3,3727.6,2.68267]
[1733305810268,0.2496536,3728.2,3727.4,2.68279]
[1733305810601,0.25005898,3728.7,3727.4,2.68279]
[1733305810602,0.2496536,3728.1,3727.5,2.68276]
[1733305810904,0.2496536,3728.0,3727.4,0.344479]
[1733305811059,0.2496536,3727.9,3727.3,2.68288]
[1733305811261,0.2496536,3727.8,3727.1,3.44503]
[1733305811478,0.2496536,3727.7,3726.5,2.68342]
[1733305811692,0.2496536,3727.7,3725.7,2.68404]
[1733305811693,2.9323636,3727.6,3726.6,3.4927]
[1733305811860,2.9323636,3727.6,3725.9,1.074206]
[1733305811861,1.449287,3727.5,3726.3,0.8093]
[1733305812213,0.899287,3727.4,3726.2,0.52814916]
[1733305812373,0.2496536,3727.3,3726.3,3.50182]
[1733305812570,0.40009438,3727.7,3726.4,0.40299692]
[1733305812771,0.24930164,3727.6,3726.5,2.68348]
[1733305812971,0.24930164,3727.5,3726.3,0.8182]
[1733305813187,0.24953902,3728.1,3726.3,0.8182]
[1733305813188,0.24930164,3727.4,3726.7,2.68332]
[1733305813373,2.93197902,3728.0,3726.3,0.8182]
[1733305813560,0.24922314,3727.3,3726.5,2.68347]
[1733305813757,0.24922314,3727.2,3726.6,2.6834]
[1733305813960,0.24922314,3727.1,3726.6,2.6834]
[1733305814401,0.24922314,3727.0,3726.6,2.6834]
[1733305814605,0.39875702,3727.4,3726.6,0.35016]
[1733305814816,0.24913626,3727.3,3726.6,3.03356]
[1733305815099,0.16781134,3728.3,3726.6,3.03356]
[1733305815100,0.39875702,3727.6,3727.2,2.68297]
[1733305815299,0.24908167,3727.5,3726.6,0.7563]
[1733305815508,0.64783869,3727.4,3726.7,2.68332]
[1733305815810,2.52839402,3728.2,3725.5,4.84664759]
[1733305815811,0.64783869,3727.3,3726.5,2.68341]
[1733305816109,0.24908167,3727.2,3726.5,2.68341]
[1733305816303,0.24908167,3727.1,3726.5,2.68341]
[1733305816603,0.39875702,3727.4,3726.7,2.68333]
[1733305816805,0.64782244,3727.3,3726.7,2.68333]
[1733305816957,0.64782244,3727.2,3726.7,2.68333]
[1733305817160,0.24906542,3727.1,3726.3,0.8062]
[1733305817400,0.24906542,3727.0,3726.6,2.6834]
[1733305817701,0.24906542,3726.9,3726.3,0.8062]
[1733305817877,0.39875702,3727.3,3726.7,2.68332]
[1733305818203,0.64751496,3727.2,3726.7,2.68332]
[1733305818408,0.24904345,3727.1,3726.3,0.8062]
[1733305818707,0.39847592,3727.6,3727.5,2.68276]
[1733305819014,0.39838192,3728.1,3727.9,2.68247]
[1733305819171,0.24897973,3728.0,3726.6,3.0]
[1733305819511,0.24897973,3727.9,3727.7,2.68254]
[1733305819708,0.24897973,3727.9,3727.5,0.7602]
[1733305819709,0.2490655,3727.8,3727.5,0.7602]
[1733305819864,0.3985048,3728.3,3727.5,0.7602]
[1733305820065,2.68185,3728.8,3727.7,2.68261]
[1733305820066,0.64757204,3728.2,3727.7,2.68261]
[1733305820262,0.64757204,3728.1,3727.7,2.68261]
[1733305820568,0.64757204,3728.0,3727.8,2.68254]
[1733305820807,0.24906724,3727.9,3727.8,2.68254]
[1733305822733,0.64811778,3727.9,3727.8,2.68254]
[1733305826733,0.81512284,3728.3,3727.8,3.27224952]
[1733305826938,1.12273321,3730.2,3727.8,3.27224952]
[1733305826939,0.81512284,3728.8,3728.2,0.8254]
[1733305827239,0.4153719,3729.0,3728.8,2.68176]
[1733305827537,0.41511967,3729.6,3728.8,2.68176]
[1733305827538,0.6496607,3728.9,3728.8,2.68176]
[1733305827707,0.24986816,3728.9,3728.8,2.68176]
[1733305827911,0.6496607,3728.9,3728.8,2.68176]
[1733305828223,0.64966394,3728.9,3728.8,2.68176]
[1733305828428,0.24986816,3728.9,3728.8,2.68176]
[1733305828634,0.24986816,3728.9,3728.3,2.68214]
[1733305828635,0.64966394,3728.9,3728.7,2.68189]
[1733305828939,0.4153719,3729.2,3728.3,2.68214]
[1733305829136,0.64987474,3729.1,3728.9,2.68172]
[1733305829335,0.64987474,3729.0,3728.9,2.68172]
[1733305830511,0.64987474,3729.0,3728.9,3.998983]
[1733305830512,0.24995182,3729.0,3728.9,3.998983]
[1733305830713,0.41672425,3729.9,3728.9,3.998983]
[1733305830893,0.41672425,3729.9,3729.8,2.6811]
[1733305831208,0.64997447,3729.9,3729.8,2.6811]
[1733305831612,0.24999018,3729.9,3729.8,2.6811]
[1733305832512,0.39998429,3730.4,3729.8,2.6811]
[1733305832713,0.41672425,3730.8,3730.1,2.68088]
[1733305832913,0.64977374,3730.7,3730.6,2.68053]
[1733305833443,0.24991214,3730.7,3730.4,3.45496]
[1733305833750,0.24991214,3730.6,3730.1,0.8089]
[1733305833930,0.24102317,3730.6,3730.4,1.11268622]
[1733305834248,0.3998616,3730.8,3730.4,1.11268622]
[1733305834249,3.49710585,3730.7,3730.4,1.11268622]
[1733305834431,0.81658585,3730.6,3730.4,1.11268622]
[1733305834629,4.04558127,3730.5,3730.4,0.50896795]
[1733305834800,3.6304616,3730.5,3730.4,0.50896795]
[1733305836828,0.79928692,3730.5,3730.4,0.50896795]
[1733305837029,0.39942532,3730.5,3730.4,0.50896795]
[1733305837446,0.79928692,3730.5,3730.4,0.50896795]
[1733305837801,0.39942532,3730.5,3730.4,0.50896795]
[1733305838006,0.79928692,3730.5,3730.4,0.50896795]
[1733305838249,0.39942532,3730.5,3730.4,0.50896795]
[1733305838805,0.24946527,3730.5,3730.4,0.50896795]
[1733305840741,0.39889121,3730.8,3730.4,0.50896795]
[1733305840950,0.249307,3730.5,3730.4,0.50896795]
[1733305841620,0.249307,3730.5,3730.4,3.18963795]
[1733305841815,0.249307,3730.5,3730.4,0.50896795]
[1733305845618,0.64819821,3730.5,3730.4,0.50896795]
[1733305845821,0.89767426,3730.5,3730.4,0.50896795]
[1733305846017,1.29656547,3730.5,3730.4,0.50896795]
[1733305846547,3.97716547,3730.5,3730.4,0.50896795]
[1733305847309,4.39267714,3730.5,3730.4,0.50896795]
[1733305848325,4.80818881,3730.5,3730.4,0.50896795]
[1733305848638,4.39267714,3730.5,3730.4,0.50896795]
[1733305849750,4.94267714,3730.5,3730.4,0.50896795]
[1733305850043,4.52716547,3730.5,3729.3,3.50306]
[1733305850239,0.4166455,3730.3,3729.3,0.8216]
[1733305850552,1.29656547,3730.2,3730.0,3.50222]
[1733305850755,0.49878305,3730.1,3730.0,3.50226]
[1733305851129,1.04779375,3730.6,3730.0,3.50226]
[1733305851457,0.54103071,3731.7,3730.1,2.68087]
[1733305851458,1.29789006,3730.5,3730.1,2.68087]
[1733305851618,0.50010764,3730.4,3730.1,2.68087]
[1733305851815,0.50010764,3730.3,3730.2,2.68082]
[1733305853731,0.50010764,3730.3,3730.0,3.50225]
[1733305853936,0.50010764,3730.2,3730.0,3.50225]
[1733305854133,0.50024149,3730.1,3730.0,3.50226]
[1733305854535,1.29943298,3730.1,3730.0,3.50226]
[1733305854731,0.50024149,3730.1,3730.0,3.50226]
[1733305855762,0.50024149,3730.1,3730.0,4.120599]
[1733305856567,0.90088868,3730.1,3730.0,4.120599]
[1733305857124,0.65083486,3730.1,3730.0,7.120599]
[1733305857331,0.25018767,3730.1,3730.0,7.120599]
[1733305858121,7.67e-06,3730.1,3730.0,7.120599]
[1733305858325,0.40092313,3730.8,3730.7,2.68046]
[1733305858566,1.2201045,3730.8,3730.7,3.50816]
[1733305859661,1.05246992,3730.8,3730.7,3.50816]
[1733305860437,1.05246992,3730.8,3730.2,2.68082]
[1733305860689,1.05246992,3730.7,3730.3,3.43361]
[1733305860872,1.05246992,3730.6,3730.3,3.43361]
[1733305861184,0.41761133,3731.0,3730.3,3.43361]
[1733305861185,0.65154679,3730.5,3730.4,2.68067]
[1733305863286,0.6515829,3730.5,3730.4,2.68067]
[1733305864151,1.05257425,3730.5,3730.4,2.68067]
[1733305864494,1.05257425,3730.5,3730.3,0.7529]
[1733305864648,1.05257425,3730.4,3730.3,3.43364]
[1733305865952,1.05263129,3730.4,3730.3,3.43364]
[1733305866150,0.6515829,3730.4,3730.3,3.43364]
[1733305866457,0.25063103,3730.4,3730.3,3.43364]
[1733305866672,0.65178664,3730.4,3730.3,3.43364]
[1733305866860,1.052883,3730.4,3730.3,3.43364]
[1733305867667,1.22053246,3730.4,3730.3,3.43364]
[1733305868380,1.22053246,3730.4,3730.3,4.1069209]
[1733305868556,0.65178664,3730.4,3730.3,4.1069209]
[1733305868754,0.41781661,3730.9,3730.8,0.7848]
[1733305868997,0.00445419,3731.9,3731.4,0.7848]
[1733305869167,0.56863498,3731.8,3730.9,2.68025]
[1733305869372,0.41772054,3731.3,3730.3,1.2232809]
[1733305869679,0.40102387,3731.2,3730.9,2.68028]
[1733305869860,0.40102387,3731.1,3730.7,2.68043]
[1733305870194,0.40102387,3731.0,3730.7,2.68043]
[1733305870396,0.40102387,3731.0,3730.3,2.68074]
[1733305870397,0.40102387,3730.9,3730.0,0.618339]
[1733305870592,0.40102387,3730.9,3729.8,4.2089054]
[1733305870593,0.65162276,3730.8,3729.8,0.52448921]
[1733305870753,0.65162276,3730.7,3730.3,2.68068]
[1733305870960,0.65162276,3730.7,3729.8,0.52448921]
[1733305870961,0.65162276,3730.6,3729.8,0.52448921]
[1733305871296,1.68409982,3731.6,3729.5,0.797782]
[1733305871297,1.22772276,3730.5,3729.7,2.68118]
[1733305871502,0.65162276,3730.4,3729.6,2.68125]
[1733305871703,0.65162276,3730.3,3729.9,2.68097]
[1733305871852,0.65162276,3730.2,3729.9,2.68097]
[1733305872055,0.5761,3730.5,3729.9,2.68097]
[1733305872056,0.65162276,3730.1,3729.9,2.68097]
[1733305872293,0.65162276,3730.0,3729.9,2.68097]
[1733305873068,0.25059889,3730.0,3729.9,2.68097]
[1733305873262,0.40102387,3730.3,3730.1,2.68082]
[1733305873491,0.65164568,3730.2,3730.1,2.68082]
[1733305874395,0.25062181,3730.2,3730.1,2.68082]
[1733305874993,0.25062181,3730.2,3730.1,3.50242]
[1733305875697,0.25062181,3730.2,3730.1,3.061161]
[1733305876258,0.25062181,3730.2,3729.8,0.7949]
[1733305876460,0.25062181,3730.1,3729.9,2.681]
[1733305876694,0.25062181,3730.0,3729.9,2.681]
[1733305878364,0.25062181,3730.0,3729.7,2.68117]
[1733305878559,0.25062181,3729.9,3729.5,0.7528]
[1733305878755,0.40122034,3729.8,3729.5,0.7528]
[1733305879019,0.25075369,3729.7,3729.6,2.95209632]
[1733305880248,0.25080948,3729.7,3729.6,2.95209632]
[1733305880902,0.50168766,3729.7,3729.6,2.95209632]
[1733305881289,0.50168766,3729.7,3729.6,2.68125]
[1733305881492,0.50168766,3729.7,3729.6,3.47305]
[1733305881714,0.40135559,3730.3,3730.2,2.68082]
[1733305882031,0.41801581,3731.2,3731.0,2.68024]
[1733305882190,0.65206976,3731.1,3730.1,0.55]
[1733305882535,0.65206976,3731.0,3730.6,2.68052]
[1733305882754,0.65206976,3730.9,3730.7,2.6804]
[1733305882928,0.65206976,3730.8,3730.7,2.6804]
[1733305884904,0.65206976,3730.8,3730.2,1.182]
[1733305885105,0.65206976,3730.7,3730.5,2.68054]
[1733305885344,0.65206976,3730.6,3730.5,2.68054]
[1733305886721,0.81971366,3730.6,3730.5,2.68054]
[1733305887245,0.81972306,3730.6,3730.5,2.68054]
[1733305890426,0.56891735,3730.6,3730.5,2.68054]
[1733305890756,0.65209658,3730.6,3730.5,4.100472]
[1733305892152,0.65207819,3730.6,3730.5,4.100472]
[1733305892315,0.40127345,3730.6,3730.5,4.100472]
[1733305892757,0.65207194,3730.6,3730.5,4.100472]
[1733305892930,0.65207194,3730.6,3730.5,3.44614]
[1733305893776,0.65206707,3730.6,3730.5,3.44614]
[1733305893948,0.9028648,3730.6,3730.5,3.44614]
[1733305894170,0.9028648,3730.6,3730.4,2.68067]
[1733305894357,0.97738274,3730.9,3729.9,0.7829]
[1733305894358,0.9028741,3730.5,3729.9,0.7829]
[1733305894570,1.30415684,3730.4,3730.3,2.68074]
[1733305894734,1.07052565,3730.4,3730.3,2.68074]
[1733305895272,1.47184496,3730.4,3730.1,2.68082]
[1733305895578,1.07052565,3730.3,3730.2,2.68081]
[1733305896174,0.5761,3730.2,3730.0,2.68093]
[1733305896340,1.07052565,3730.1,3730.0,2.68096]
[1733305896749,1.07052565,3730.1,3730.0,2.949056]
[1733305896950,0.9028741,3730.1,3730.0,2.949056]
[1733305897182,0.40131931,3730.4,3730.0,2.949056]
[1733305897351,0.25081022,3730.1,3729.7,2.68118]
[1733305897552,0.40129635,3730.4,3730.1,2.68086]
[1733305897947,1.47189845,3730.3,3730.1,2.68086]
[1733305898108,1.0706021,3730.2,3730.1,2.68086]
[1733305899412,1.47189845,3730.2,3730.1,2.68086]
[1733305899711,1.0706021,3730.2,3730.1,2.68086]
[1733305901305,1.47200777,3730.2,3730.1,2.68086]
[1733305901460,1.0706021,3730.2,3730.1,2.68086]
[1733305901658,1.47200777,3730.2,3730.1,2.68086]
[1733305901862,1.0706021,3730.2,3730.1,2.68086]
[1733305903969,1.47203425,3730.2,3730.1,2.68086]
[1733305904173,1.47212791,3730.2,3730.1,2.68086]
[1733305904383,1.07068947,3730.2,3730.1,2.68086]
[1733305905573,1.47212303,3730.2,3730.1,2.68086]
[1733305905772,1.07068947,3730.2,3730.1,2.68086]
[1733305906802,1.47212739,3730.2,3730.1,2.68086]
[1733305906962,1.07068947,3730.2,3730.1,2.68086]
[1733305907165,1.47212491,3730.2,3730.1,2.68086]
[1733305907366,1.07068947,3730.2,3730.1,2.68086]
[1733305907605,1.47235891,3730.2,3730.1,2.68086]
[1733305907803,1.07092347,3730.2,3730.1,2.68086]
[1733305907959,1.47237657,3730.2,3730.1,2.68086]
[1733305908590,1.07092347,3730.2,3730.1,2.68086]
[1733305908798,1.47237657,3730.2,3730.1,2.68086]
[1733305909140,1.07092347,3730.2,3730.1,2.68086]
[1733305909301,1.47237657,3730.2,3730.1,2.68086]
[1733305909462,1.07092347,3730.2,3730.1,2.68086]
[1733305910482,1.47242433,3730.2,3730.1,2.68086]
[1733305910708,1.47242479,3730.2,3730.1,2.68086]
[1733305910906,1.07092347,3730.2,3730.1,2.68086]
[1733305911114,1.0709982,3730.2,3730.1,2.68086]
[1733305911418,1.6470982,3730.2,3730.1,2.68086]
[1733305911594,2.04859809,3730.2,3730.1,2.68086]
[1733305911796,1.6470982,3730.2,3730.1,2.68086]
[1733305911998,1.47249809,3730.2,3730.1,2.68086]
[1733305912216,1.0709982,3730.2,3730.1,2.68086]
[1733305912780,1.47255484,3730.2,3730.1,2.68086]
[1733305912976,1.0709982,3730.2,3730.1,2.68086]
[1733305913206,1.47255484,3730.2,3730.1,2.68086]
[1733305914129,1.0709982,3730.2,3728.8,0.2683]
[1733305914324,3.28213316,3730.1,3729.0,0.7533]
[1733305914630,0.41835057,3729.6,3729.1,2.68161]
[1733305914795,1.64017791,3729.5,3729.1,2.68161]
[1733305915002,1.47276475,3729.4,3729.1,2.68161]
[1733305915187,1.07112439,3729.3,3729.1,2.68161]
[1733305915524,1.07112439,3729.2,3728.8,2.68182]
[1733305915731,1.07112439,3729.1,3728.8,2.68182]
[1733305916037,1.47261092,3729.0,3728.5,2.68198]
[1733305916189,2.04871092,3728.9,3728.2,0.7533]
[1733305916391,1.3048994,3728.8,3728.2,1.096866]
[1733305916701,0.5761,3728.9,3727.8,0.7829]
[1733305916702,0.90346248,3728.7,3727.8,0.7829]
[1733305916898,0.90346248,3728.6,3728.0,2.68234]
[1733305917087,1.47247151,3728.5,3727.9,2.68246]
[1733305917291,2.04857151,3728.4,3727.4,0.8304]
[1733305917591,1.47247151,3728.3,3727.4,0.8304]
[1733305917788,0.5761,3728.4,3727.4,0.8304]
[1733305917789,1.47160988,3728.2,3727.4,1.23609761]
[1733305918014,1.30386266,3728.1,3727.4,0.8304]
[1733305918216,0.90298549,3728.0,3727.7,2.68255]
[1733305918435,0.90298549,3728.0,3727.4,0.8304]
[1733305918436,0.90298549,3728.0,3727.5,2.68276]
[1733305918726,0.40087717,3728.3,3727.9,0.09554581]
[1733305919030,0.90112907,3728.2,3727.9,0.09554581]
[1733305919336,0.50062718,3728.1,3728.0,2.68238]
[1733305919502,0.4002075,3728.7,3728.5,2.68204]
[1733305919706,0.90046246,3728.6,3728.5,2.68204]
[1733305919915,0.50025496,3728.6,3728.5,2.68204]
[1733305920736,0.90042861,3728.6,3728.5,2.68204]
[1733305920939,0.5002433,3728.6,3728.5,2.68204]
[1733305921240,0.90042861,3728.6,3728.5,2.68204]
[1733305921397,0.90042861,3728.6,3728.0,0.8188]
[1733305921738,0.90042861,3728.5,3728.2,2.68219]
[1733305921936,0.90042861,3728.4,3727.9,0.37334839]
[1733305922093,0.25012748,3728.3,3728.2,2.68225]